bitfinex-derivatives/quotes_BTCF0:USTF0_20260104
["timestamp","ask_amount","ask_price","bid_price","bid_amount"]
[1767493750688,0.00991819,91261.0,91249.0,0.010963]
[1767493751089,0.00991819,91261.0,91246.0,0.0932]
[1767493752396,0.00991819,91261.0,91251.0,0.010963]
[1767493753402,0.00991819,91261.0,91246.0,0.0932]
[1767493753903,0.00991819,91261.0,91247.0,0.010964]
[1767493757104,0.00991819,91261.0,91249.0,0.010963]
[1767493759613,0.0001644,91263.0,91251.0,0.010963]
[1767493767810,0.0001644,91263.0,91251.0,0.07084874]
[1767493770016,0.0001644,91263.0,91253.0,0.010963]
[1767493770414,0.0001644,91263.0,91254.0,0.05792416]
[1767493773013,0.0001644,91263.0,91249.0,0.05841676]
[1767493773215,0.0001644,91263.0,91250.0,0.00970494]
[1767493773414,0.0001644,91263.0,91251.0,0.04871182]
[1767493773818,0.0001644,91263.0,91252.0,0.00970494]
[1767493774020,0.0001644,91263.0,91253.0,0.010963]
[1767493774320,0.21839408,91270.0,91253.0,0.010963]
[1767493774520,0.21839408,91270.0,91255.0,0.00970494]
[1767493774921,0.20743308,91270.0,91255.0,0.02066794]
[1767493777119,0.20743308,91270.0,91255.0,0.010963]
[1767493778927,0.20743308,91270.0,91257.0,0.05841676]
[1767493779223,0.0932,91270.0,91258.0,0.05841676]
[1767493779418,0.0001644,91272.0,91259.0,0.00970494]
[1767493779624,0.0932,91271.0,91262.0,0.05841676]
[1767493780023,0.0932,91271.0,91262.0,0.04871182]
[1767493780323,0.0932,91271.0,91256.0,0.00970494]
[1767493782630,0.11423308,91270.0,91256.0,0.00970494]
[1767493783930,0.11423308,91270.0,91255.0,0.05967482]
[1767493789529,0.0932,91271.0,91255.0,0.05967482]
[1767493789734,0.0001644,91272.0,91257.0,0.010962]
[1767493789935,0.0933644,91272.0,91257.0,0.010962]
[1767493797634,0.02756493,91271.0,91257.0,0.010962]
[1767493797834,0.02756493,91270.0,91257.0,0.010962]
[1767493798037,0.02756493,91269.0,91257.0,0.010962]
[1767493798238,0.0933644,91272.0,91257.0,0.010962]
[1767493798440,0.02756511,91271.0,91257.0,0.010962]
[1767493798636,0.02756511,91270.0,91257.0,0.010962]
[1767493798940,0.02756511,91269.0,91257.0,0.010962]
[1767493799140,0.0933644,91272.0,91257.0,0.010962]
[1767493799335,0.02756534,91271.0,91257.0,0.010962]
[1767493799639,0.02756534,91270.0,91257.0,0.010962]
[1767493799937,0.02756534,91269.0,91257.0,0.010962]
[1767493800139,0.0933644,91272.0,91257.0,0.010962]
[1767493800340,0.02756559,91271.0,91257.0,0.010962]
[1767493800639,0.02756559,91270.0,91259.0,0.010962]
[1767493800841,0.0933644,91272.0,91259.0,0.010962]
[1767493801040,0.02756558,91271.0,91259.0,0.010962]
[1767493801336,0.02756558,91270.0,91256.0,0.010963]
[1767493801533,0.02756558,91269.0,91256.0,0.010963]
[1767493801734,0.00911562,91271.0,91256.0,0.010963]
[1767493801941,0.03668146,91270.0,91256.0,0.010963]
[1767493802239,0.02756584,91269.0,91256.0,0.010963]
[1767493802539,0.00911562,91270.0,91256.0,0.010963]
[1767493802840,0.02756618,91269.0,91256.0,0.010963]
[1767493803040,0.00911562,91270.0,91256.0,0.010963]
[1767493803240,0.02756668,91269.0,91256.0,0.010963]
[1767493803442,0.00911562,91270.0,91256.0,0.010963]
[1767493803642,0.02756671,91269.0,91253.0,0.010963]
[1767493803942,0.00911562,91270.0,91253.0,0.010963]
[1767493804141,0.02756672,91269.0,91253.0,0.010963]
[1767493804341,0.00911562,91270.0,91253.0,0.010963]
[1767493804546,0.02756735,91269.0,91253.0,0.010963]
[1767493804734,0.00911562,91270.0,91253.0,0.010963]
[1767493804934,0.02756735,91269.0,91253.0,0.010963]
[1767493805135,0.00911562,91270.0,91253.0,0.010963]
[1767493805336,0.02756804,91269.0,91253.0,0.010963]
[1767493805532,0.00911562,91270.0,91253.0,0.010963]
[1767493805742,0.02756804,91269.0,91253.0,0.010963]
[1767493805945,0.00911562,91270.0,91253.0,0.010963]
[1767493806243,0.02756804,91269.0,91253.0,0.010963]
[1767493806443,0.00911562,91270.0,91253.0,0.010963]
[1767493806645,0.02756813,91269.0,91253.0,0.010963]
[1767493806840,0.00911562,91270.0,91253.0,0.010963]
[1767493812153,0.00911562,91270.0,91255.0,0.010963]
[1767493813453,0.0111254,91272.0,91255.0,0.010963]
[1767493814256,0.02024102,91272.0,91255.0,0.010963]
[1767493816252,0.02024102,91272.0,91256.0,0.00944153]
[1767493816253,0.0001644,91272.0,91256.0,0.00944153]
[1767493816447,0.0001644,91272.0,91256.0,0.05620347]
[1767493816760,0.0932,91292.0,91278.0,0.00944153]
[1767493816950,0.0275992,91291.0,91277.0,0.04676194]
[1767493817151,0.0275992,91290.0,91277.0,0.05772194]
[1767493817452,0.50231562,91292.0,91277.0,0.01096]
[1767493817856,0.00911562,91291.0,91275.0,0.0001644]
[1767493821966,0.00911562,91291.0,91275.0,0.0111244]
[1767493822962,0.0932,91292.0,91279.0,0.01096]
[1767493825059,0.00928002,91294.0,91283.0,0.010959]
[1767493825954,0.00928002,91294.0,91280.0,0.01096]
[1767493826358,0.00928002,91294.0,91277.0,0.01096]
[1767493829576,0.00911562,91289.0,91275.0,0.0001644]
[1767493829785,0.0001644,91294.0,91276.0,0.01096]
[1767493829974,0.009549,91292.0,91276.0,0.01096]
[1767493830174,0.009549,91291.0,91276.0,0.01096]
[1767493830883,0.009549,91290.0,91276.0,0.01096]
[1767493831582,0.05722189,91290.0,91275.0,0.0001644]
[1767493831779,0.05722189,91290.0,91272.0,0.010961]
[1767493831780,0.009549,91283.0,91269.0,0.010961]
[1767493832284,0.00937955,91282.0,91268.0,0.09316]
[1767493833573,0.05452491,91281.0,91266.0,0.0001644]
[1767493833778,0.00937955,91275.0,91263.0,0.09316]
[1767493834082,0.00937955,91275.0,91262.0,0.010962]
[1767493835077,0.00937955,91275.0,91264.0,0.010962]
[1767493835681,0.00937955,91280.0,91264.0,0.010962]
[1767493838189,0.00937955,91280.0,91266.0,0.010961]
[1767493839492,0.00937955,91280.0,91263.0,0.010962]
[1767493840796,0.00937955,91280.0,91265.0,0.010961]
[1767493840989,0.00937955,91280.0,91267.0,0.010961]
[1767493844892,0.00937955,91280.0,91270.0,0.010961]
[1767493846703,0.00937955,91277.0,91262.0,0.008962]
[1767493847101,0.00937955,91277.0,91259.0,0.01331798]
[1767493847293,0.00937955,91273.0,91259.0,0.00235598]
[1767493847492,0.00937955,91272.0,91259.0,0.00235598]
[1767493848296,0.00937955,91272.0,91259.0,0.01331798]
[1767493849701,0.00937955,91272.0,91261.0,0.010962]
[1767493852097,0.00937955,91272.0,91259.0,0.00235598]
[1767493852298,0.00937955,91272.0,91260.0,0.010962]
[1767493852499,0.04514536,91273.0,91260.0,0.010962]
[1767493855609,0.04514536,91273.0,91259.0,0.00235598]
[1767493855906,0.05494826,91273.0,91259.0,0.01331798]
[1767493857406,0.0099673,91275.0,91262.0,0.010962]
[1767493858003,0.11424421,91272.0,91262.0,0.010962]
[1767493859014,0.11424421,91272.0,91259.0,0.01331798]
[1767493860210,0.0099673,91275.0,91259.0,0.01331798]
[1767493860410,0.01096,91274.0,91259.0,0.01331798]
[1767493860614,0.00964784,91273.0,91259.0,0.00235598]
[1767493862213,0.11424421,91270.0,91259.0,0.00235598]
[1767493862415,0.00964784,91267.0,91259.0,0.00235598]
[1767493864516,0.05260905,91270.0,91259.0,0.00235598]
[1767493864718,0.16685326,91270.0,91259.0,0.00235598]
[1767493864910,0.12389205,91270.0,91259.0,0.00235598]
[1767493865315,0.11424421,91270.0,91260.0,0.010962]
[1767493868623,0.00964784,91274.0,91260.0,0.010962]
[1767493868819,0.11424421,91270.0,91260.0,0.010962]
[1767493869623,0.11424421,91270.0,91262.0,0.010962]
[1767493870125,0.11424421,91270.0,91259.0,0.01331798]
[1767493870326,0.11424421,91270.0,91261.0,0.010962]
[1767493870720,0.11424421,91270.0,91263.0,0.010962]
[1767493872417,0.00964784,91274.0,91263.0,0.010962]
[1767493873125,0.00964784,91274.0,91259.0,0.00235598]
[1767493873326,0.04312561,91275.0,91259.0,0.00235598]
[1767493873525,0.05277345,91275.0,91259.0,0.00235598]
[1767493874026,0.00964784,91274.0,91259.0,0.00235598]
[1767493874422,0.00964784,91274.0,91265.0,0.010961]
[1767493877922,0.04312561,91275.0,91265.0,0.010961]
[1767493878728,0.0001644,91275.0,91265.0,0.010961]
[1767493881329,0.00981224,91275.0,91261.0,0.010962]
[1767493881528,0.00964784,91274.0,91259.0,0.00235598]
[1767493884932,0.00964784,91274.0,91260.0,0.010962]
[1767493887635,0.00964784,91274.0,91263.0,0.010962]
[1767493889041,0.00964784,91274.0,91265.0,0.010961]
[1767493889344,0.04312561,91275.0,91265.0,0.010961]
[1767493889345,0.0001644,91275.0,91265.0,0.010961]
[1767493906467,0.0001644,91275.0,91265.0,0.02038718]
[1767493912766,0.0001644,91275.0,91265.0,0.06465066]
[1767493919570,0.0001644,91275.0,91266.0,0.05368966]
[1767493920876,0.0001644,91275.0,91267.0,0.00982891]
[1767493921175,0.09316,91276.0,91268.0,0.04427965]
[1767493921876,0.09316,91276.0,91269.0,0.05410856]
[1767493922075,0.09316,91276.0,91270.0,0.04427965]
[1767493922376,0.0932,91276.0,91270.0,0.05410856]
[1767493922676,0.0932,91279.0,91270.0,0.05410856]
[1767493923273,0.0932,91279.0,91270.0,0.06506956]
[1767493927180,0.0932,91279.0,91270.0,0.05524065]
[1767493927480,0.0932,91280.0,91270.0,0.05524065]
[1767493928069,0.0001644,91282.0,91270.0,0.05524065]
[1767493928274,0.0932,91281.0,91270.0,0.05524065]
[1767493928474,0.0001644,91282.0,91270.0,0.05524065]
[1767493928686,0.0932,91280.0,91270.0,0.05524065]
[1767493930880,0.0932,91280.0,91271.0,0.05410856]
[1767493931081,0.0932,91280.0,91272.0,0.00982891]
[1767493931986,0.0932,91280.0,91271.0,0.04427965]
[1767493935181,0.0091792,91275.0,91259.0,0.00235598]
[1767493935387,0.0201402,91273.0,91259.0,0.00235598]
[1767493935584,0.010961,91269.0,91259.0,0.00235598]
[1767493935788,0.010961,91269.0,91238.0,0.58047324]
[1767493935789,0.0091792,91268.0,91249.0,0.14844265]
[1767493935990,0.0091792,91268.0,91249.0,0.05524265]
[1767493936688,0.0091792,91268.0,91252.0,0.010963]
[1767493938790,0.0091792,91268.0,91251.0,0.0001644]
[1767493940083,0.010961,91267.0,91251.0,0.0001644]
[1767493940291,0.0091792,91266.0,91251.0,0.0001644]
[1767493942192,0.010962,91265.0,91251.0,0.0001644]
[1767493942692,0.0091792,91265.0,91251.0,0.0001644]
[1767493944797,0.0091792,91264.0,91251.0,0.0001644]
[1767493947298,0.0091792,91264.0,91252.0,0.010963]
[1767493948896,0.0091792,91264.0,91251.0,0.0001644]
[1767493949097,0.0091792,91263.0,91251.0,0.0001644]
[1767493950102,0.05103644,91263.0,91251.0,0.0001644]
[1767493950297,0.00994632,91260.0,91249.0,0.010963]
[1767493952802,0.00994632,91260.0,91251.0,0.010963]
[1767493953002,0.00994632,91260.0,91248.0,0.010964]
[1767493953198,0.00930991,91253.0,91234.0,0.04481675]
[1767493953404,0.00930991,91253.0,91236.0,0.0932]
[1767493953896,0.010964,91243.0,91226.0,0.010966]
[1767493954097,0.00930991,91244.0,91226.0,0.010966]
[1767493954292,0.00930991,91244.0,91227.0,0.0001096]
[1767493955405,0.00930991,91244.0,91228.0,0.010966]
[1767493961201,0.00930991,91243.0,91228.0,0.010966]
[1767493962107,0.00930991,91242.0,91227.0,0.0001096]
[1767493963713,0.00930991,91238.0,91227.0,0.0001096]
[1767493964199,0.00930991,91233.0,91218.0,0.010967]
[1767493964394,0.010966,91232.0,91215.0,0.010967]
[1767493964619,0.00930991,91233.0,91213.0,0.14736573]
[1767493964810,0.00930991,91233.0,91217.0,0.010967]
[1767493967407,0.00930991,91231.0,91217.0,0.010967]
[1767493967607,0.00930991,91235.0,91217.0,0.010967]
[1767493967810,0.00930991,91232.0,91217.0,0.010967]
[1767493971413,0.00930991,91231.0,91213.0,0.05578475]
[1767493971609,0.00930991,91231.0,91215.0,0.010967]
[1767493972313,0.00930991,91229.0,91213.0,0.04481675]
[1767493972512,0.00930991,91229.0,91212.0,0.010968]
[1767493972813,0.11435953,91222.0,91209.0,0.010968]
[1767493973317,0.00930991,91220.0,91205.0,0.0932]
[1767493974014,0.00930991,91220.0,91205.0,0.104169]
[1767493974516,0.00930991,91220.0,91205.0,0.0932]
[1767493975320,0.00930991,91220.0,91207.0,0.010968]
[1767493976310,0.00930991,91220.0,91205.0,0.0932]
[1767493976711,0.00930991,91220.0,91204.0,0.010969]
[1767493976916,0.00930991,91219.0,91203.0,0.010969]
[1767493977613,0.11435953,91222.0,91201.0,0.04481675]
[1767493977614,0.00930991,91218.0,91201.0,0.04481675]
[1767493977816,0.010969,91205.0,91192.0,0.00934898]
[1767493978010,0.010968,91208.0,91192.0,0.00934898]
[1767493978310,0.02027791,91208.0,91191.0,0.04481675]
[1767493978513,0.00930991,91208.0,91191.0,0.04481675]
[1767493978903,9.156e-05,91207.0,91197.0,0.01097]
[1767493980820,0.09324,91211.0,91190.0,0.11435953]
[1767493980821,5.6e-07,91211.0,91206.0,0.010969]
[1767493981016,0.09324,91214.0,91206.0,0.010969]
[1767493981613,0.09324,91214.0,91203.0,0.010969]
[1767493984523,0.04237262,91223.0,91190.0,0.11435953]
[1767493984524,0.0099859,91221.0,91206.0,0.010969]
[1767493984722,0.0001644,91225.0,91207.0,0.00941591]
[1767493984928,0.09324,91224.0,91210.0,0.010968]
[1767493987342,0.1032259,91224.0,91207.0,0.010968]
[1767493987533,0.0099859,91223.0,91207.0,0.010968]
[1767493988730,0.11435953,91220.0,91207.0,0.010968]
[1767493990441,0.0099859,91223.0,91210.0,0.010968]
[1767493990642,0.09324,91224.0,91210.0,0.010968]
[1767493990838,0.0001644,91225.0,91208.0,0.05262363]
[1767493991146,0.09324,91224.0,91208.0,0.05262363]
[1767493991438,0.0001644,91225.0,91208.0,0.05262363]
[1767493991741,0.09324,91224.0,91213.0,0.010968]
[1767493992043,0.0001644,91225.0,91213.0,0.010968]
[1767493992342,0.0934044,91225.0,91213.0,0.010968]
[1767493993041,0.0934044,91225.0,91215.0,0.010967]
[1767493993544,0.0934044,91225.0,91211.0,0.010968]
[1767493993844,0.0934044,91225.0,91213.0,0.010968]
[1767493998844,0.0934044,91225.0,91211.0,0.010968]
[1767493999242,0.1033903,91225.0,91211.0,0.010968]
[1767493999747,0.27948,91240.0,91198.0,0.09324]
[1767493999748,0.10034192,91259.0,91215.0,0.00454048]
[1767494000040,0.09067212,91276.0,91264.0,0.00454048]
[1767494000245,0.04237262,91288.0,91264.0,0.04320772]
[1767494000538,0.04237262,91286.0,91268.0,0.010961]
[1767494000741,0.04253702,91286.0,91268.0,0.0001644]
[1767494000945,0.09324,91285.0,91273.0,0.010961]
[1767494001836,0.0099859,91284.0,91273.0,0.010961]
[1767494002045,0.0099859,91284.0,91269.0,0.010961]
[1767494002340,0.11435953,91280.0,91268.0,0.0001644]
[1767494002533,0.12434543,91280.0,91268.0,0.0001644]
[1767494003147,0.09324,91279.0,91268.0,0.0001644]
[1767494005753,0.09324,91279.0,91269.0,0.010961]
[1767494006538,0.1032259,91279.0,91269.0,0.010961]
[1767494008549,0.09324,91279.0,91269.0,0.010961]
[1767494009340,0.09324,91279.0,91268.0,0.0001644]
[1767494009545,0.1032259,91279.0,91268.0,0.0111254]
[1767494010750,0.00924801,91278.0,91268.0,0.0111254]
[1767494010949,0.0932,91277.0,91268.0,0.0111254]
[1767494011653,0.0932,91277.0,91268.0,0.0001644]
[1767494012148,0.0932,91277.0,91256.0,0.08916969]
[1767494012149,0.00930302,91268.0,91256.0,0.08916969]
[1767494012348,0.00930302,91268.0,91250.0,0.11435953]
[1767494012854,0.11435953,91270.0,91261.0,0.010962]
[1767494013150,0.00930302,91271.0,91261.0,0.010962]
[1767494013344,0.12366255,91271.0,91261.0,0.010962]
[1767494013544,0.00930302,91270.0,91261.0,0.010962]
[1767494014952,0.00930302,91270.0,91263.0,0.010962]
[1767494016450,0.00930302,91270.0,91251.0,0.05044995]
[1767494017058,0.00930302,91270.0,91251.0,0.13692765]
[1767494017449,0.00930302,91270.0,91263.0,0.010962]
[1767494017648,0.05046817,91274.0,91253.0,0.00948445]
[1767494018048,0.05977119,91274.0,91253.0,0.00748445]
[1767494018353,0.00930302,91273.0,91253.0,0.00748445]
[1767494019358,0.00930302,91273.0,91264.0,0.010962]
[1767494019655,0.00930302,91273.0,91252.0,0.04677672]
[1767494019656,0.00930302,91273.0,91260.0,0.010962]
[1767494019858,0.00930302,91271.0,91263.0,0.010962]
[1767494021549,0.05046817,91272.0,91263.0,0.010962]
[1767494022463,0.05046817,91272.0,91252.0,0.05626117]
[1767494023065,0.05046817,91272.0,91265.0,0.010961]
[1767494023363,0.05977119,91272.0,91265.0,0.010961]
[1767494029173,0.05870106,91300.0,91251.0,0.0864777]
[1767494029174,4e-07,91286.0,91275.0,0.04677672]
[1767494029468,0.00219086,91289.0,91270.0,0.16113625]
[1767494029656,0.00219086,91289.0,91278.0,0.01096]
[1767494029657,0.01149388,91289.0,91278.0,0.01096]
[1767494029859,0.0932,91288.0,91278.0,0.01096]
[1767494030258,0.01149388,91289.0,91278.0,0.01096]
[1767494030459,0.0932,91288.0,91278.0,0.01096]
[1767494030870,0.00930302,91287.0,91274.0,0.01096]
[1767494031771,0.00930302,91287.0,91270.0,0.04677672]
[1767494031973,0.0932,91288.0,91271.0,0.04677672]
[1767494032356,0.00219086,91289.0,91271.0,0.04477672]
[1767494032562,0.0932,91287.0,91271.0,0.04477672]
[1767494033169,0.00219086,91289.0,91271.0,0.04477672]
[1767494033378,0.0932,91288.0,91278.0,0.01096]
[1767494033674,0.09539086,91289.0,91278.0,0.01096]
[1767494033871,0.09539086,91289.0,91278.0,0.00896]
[1767494035373,0.09539086,91289.0,91278.0,0.00696]
[1767494038677,0.09539086,91289.0,91280.0,0.01096]
[1767494043072,0.09539086,91289.0,91278.0,0.01096]
[1767494043880,0.09539086,91289.0,91280.0,0.01096]
[1767494044878,0.00219086,91289.0,91280.0,0.01096]
[1767494045176,0.00939821,91288.0,91280.0,0.01096]
[1767494047778,0.06472457,91288.0,91271.0,0.0001644]
[1767494047979,0.05532636,91285.0,91271.0,0.0001644]
[1767494048177,0.00939821,91284.0,91271.0,0.0001644]
[1767494048380,0.00939821,91282.0,91271.0,0.0001644]
[1767494048566,0.06472457,91282.0,91271.0,0.0001644]
[1767494048973,0.06472457,91282.0,91274.0,0.01096]
[1767494049166,0.09535086,91289.0,91259.0,0.0932]
[1767494049167,0.00939821,91275.0,91259.0,0.0932]
[1767494049373,0.00939821,91275.0,91268.0,0.010961]
[1767494049679,0.05532636,91276.0,91268.0,0.010961]
[1767494049874,0.05532636,91276.0,91259.0,0.0932]
[1767494050076,0.05532636,91276.0,91267.0,0.010961]
[1767494051587,0.05532636,91276.0,91259.0,0.17151926]
[1767494051588,0.00939821,91274.0,91264.0,0.010962]
[1767494051985,0.00939821,91273.0,91264.0,0.010962]
[1767494052385,0.05532636,91274.0,91264.0,0.010962]
[1767494054382,0.06472457,91274.0,91264.0,0.010962]
[1767494055274,0.00939821,91277.0,91261.0,0.07831926]
[1767494056083,0.00939821,91277.0,91265.0,0.010961]
[1767494056681,0.14848636,91279.0,91265.0,0.010961]
[1767494057088,0.15788457,91279.0,91265.0,0.010961]
[1767494057979,0.15788457,91279.0,91268.0,0.010961]
[1767494058184,0.09316,91282.0,91264.0,0.00969048]
[1767494058392,0.00939821,91283.0,91264.0,0.00969048]
[1767494058584,0.09316,91282.0,91264.0,0.00969048]
[1767494058888,0.09316,91282.0,91265.0,0.00969048]
[1767494059383,0.09316,91282.0,91274.0,0.01096]
[1767494061391,0.00898043,91279.0,91261.0,0.00969048]
[1767494061689,0.06430679,91279.0,91271.0,0.010961]
[1767494062088,0.05532636,91279.0,91271.0,0.010961]
[1767494064191,0.00894663,91272.0,91259.0,0.17151926]
[1767494064394,0.06427299,91272.0,91263.0,0.010962]
[1767494065790,0.00893306,91269.0,91259.0,0.0932]
[1767494066088,0.05532636,91270.0,91259.0,0.010962]
[1767494066593,0.05532636,91270.0,91261.0,0.010962]
[1767494067186,0.05532636,91270.0,91263.0,0.010962]
[1767494067387,0.0001644,91273.0,91263.0,0.010962]
[1767494067787,0.0001644,91273.0,91265.0,0.010961]
[1767494068688,0.05532636,91275.0,91265.0,0.010961]
[1767494074193,0.06399252,91274.0,91265.0,0.010961]
[1767494074599,0.0632546,91274.0,91265.0,0.010961]
[1767494075700,0.0001644,91279.0,91265.0,0.010961]
[1767494075893,0.0001644,91279.0,91268.0,0.010961]
[1767494087607,0.0001644,91279.0,91264.0,0.00961048]
[1767494088925,0.0001644,91279.0,91270.0,0.010961]
[1767494089822,0.0001644,91279.0,91267.0,0.00961048]
[1767494090021,0.0001644,91279.0,91262.0,0.07831926]
[1767494090022,0.09316,91283.0,91276.0,0.07822374]
[1767494090426,0.09316,91283.0,91276.0,0.00961048]
[1767494090625,0.09316,91283.0,91275.0,0.01096]
[1767494100028,0.0001644,91288.0,91277.0,0.01096]
[1767494100236,0.09316,91287.0,91274.0,0.01096]
[1767494101626,0.09316,91287.0,91272.0,0.00945519]
[1767494101834,0.09316,91298.0,91284.0,0.00945519]
[1767494102033,0.09316,91298.0,91287.0,0.00945519]
[1767494102229,0.11420971,91310.0,91290.0,0.00945519]
[1767494102230,0.00860073,91308.0,91290.0,0.00945519]
[1767494102933,0.00876504,91308.0,91290.0,0.0096195]
[1767494103522,0.00016431,91308.0,91294.0,0.010958]
[1767494103923,0.00016431,91308.0,91295.0,0.00945519]
[1767494104230,0.09316,91321.0,91307.0,0.010956]
[1767494105337,0.09316,91321.0,91304.0,0.07250014]
[1767494105731,0.09316,91321.0,91304.0,0.07050014]
[1767494105932,0.11420971,91320.0,91303.0,0.010957]
[1767494106132,0.11420971,91320.0,91304.0,0.00945519]
[1767494106332,0.12516471,91320.0,91304.0,0.00945519]
[1767494106532,0.12516471,91320.0,91296.0,0.010958]
[1767494106533,0.00626216,91313.0,91296.0,0.010958]
[1767494107337,0.0704482,91314.0,91296.0,0.02041319]
[1767494108138,0.0704482,91314.0,91297.0,0.00945519]
[1767494108437,0.07704459,91312.0,91294.0,0.09316]
[1767494108836,0.07704459,91312.0,91297.0,0.010958]
[1767494109031,0.07704459,91312.0,91295.0,0.09316]
[1767494109238,0.07704459,91312.0,91296.0,0.010958]
[1767494109925,0.07704459,91312.0,91290.0,0.11437402]
[1767494109926,0.0064433,91307.0,91294.0,0.010958]
[1767494110325,0.0704482,91308.0,91294.0,0.010958]
[1767494111038,0.0704482,91308.0,91290.0,0.13478721]
[1767494111240,0.0704482,91308.0,91291.0,0.09316]
[1767494111428,0.0704482,91308.0,91292.0,0.010958]
[1767494112239,0.07659403,91313.0,91294.0,0.02041319]
[1767494112436,0.0704482,91313.0,91296.0,0.010958]
[1767494112644,0.0704482,91313.0,91296.0,0.02041319]
[1767494113028,0.0704482,91313.0,91300.0,0.11420971]
[1767494113334,0.00614583,91317.0,91300.0,0.11420971]
[1767494113742,0.010955,91316.0,91300.0,0.11420971]
[1767494114541,0.010955,91316.0,91298.0,0.02041219]
[1767494114844,0.010955,91316.0,91298.0,0.00945519]
[1767494117337,0.010955,91316.0,91298.0,0.02041319]
[1767494117842,0.010955,91318.0,91302.0,0.00945519]
[1767494118147,0.104115,91318.0,91304.0,0.00945519]
[1767494118736,0.104115,91318.0,91303.0,0.07250014]
[1767494118936,0.104115,91318.0,91301.0,0.00945519]
[1767494119343,0.104115,91318.0,91292.0,0.09316]
[1767494119344,0.00530357,91309.0,91292.0,0.09316]
[1767494119533,0.07575177,91308.0,91292.0,0.09316]
[1767494120236,0.0704482,91308.0,91292.0,0.09316]
[1767494120444,0.0704482,91308.0,91292.0,0.09116]
[1767494122246,0.010956,91307.0,91292.0,0.09116]
[1767494123239,0.0704482,91308.0,91292.0,0.09116]
[1767494124746,0.010956,91309.0,91292.0,0.10061519]
[1767494125243,0.00509311,91310.0,91293.0,0.010958]
[1767494125447,0.11930282,91310.0,91293.0,0.010958]
[1767494125748,0.010956,91312.0,91293.0,0.010958]
[1767494125950,0.010956,91315.0,91296.0,0.00945519]
[1767494126248,0.010956,91315.0,91297.0,0.00945519]
[1767494126850,0.00016431,91322.0,91304.0,0.00945519]
[1767494127040,0.00016431,91322.0,91309.0,0.1346209]
[1767494128145,0.00016431,91322.0,91309.0,0.00945519]
[1767494129349,0.0814032,91321.0,91303.0,0.010957]
[1767494129544,0.0814032,91321.0,91304.0,0.00945519]
[1767494129745,0.0814032,91321.0,91305.0,0.010957]
[1767494129954,0.010955,91321.0,91305.0,0.02041219]
[1767494130849,0.00016431,91322.0,91306.0,0.00944679]
[1767494131050,0.00016431,91322.0,91307.0,0.02040279]
[1767494131550,0.00016431,91322.0,91308.0,0.00944679]
[1767494132442,0.00016431,91322.0,91309.0,0.010956]
[1767494132653,0.00016431,91322.0,91309.0,0.02065783]
[1767494133654,0.00016431,91322.0,91310.0,0.00970183]
[1767494133947,0.00016431,91322.0,91313.0,0.00970183]
[1767494134944,0.00016431,91322.0,91313.0,0.00770183]
[1767494136253,0.00016431,91322.0,91313.0,0.01865783]
[1767494137550,0.010953,91339.0,91321.0,0.00970183]
[1767494137758,0.010953,91337.0,91321.0,0.00970183]
[1767494137955,0.02445296,91336.0,91321.0,0.00770183]
[1767494138156,0.02445296,91335.0,91321.0,0.00770183]
[1767494138356,0.00983897,91325.0,91308.0,0.00016431]
[1767494138565,0.0851153,91324.0,91308.0,0.01112031]
[1767494138857,0.01111831,91326.0,91308.0,0.01112031]
[1767494139255,0.010955,91324.0,91308.0,0.00016431]
[1767494139445,0.010955,91324.0,91308.0,0.01112031]
[1767494140158,0.010955,91324.0,91308.0,0.02082214]
[1767494140359,0.010955,91324.0,91309.0,0.00970183]
[1767494140559,0.00016431,91326.0,91309.0,0.00970183]
[1767494141559,0.00016431,91326.0,91309.0,0.0742814]
[1767494142559,0.00016431,91326.0,91310.0,0.010956]
[1767494143461,0.01111831,91326.0,91311.0,0.00970183]
[1767494144164,0.01111831,91326.0,91311.0,0.00770183]
[1767494144676,0.01111831,91326.0,91311.0,0.00570183]
[1767494145569,0.01111831,91326.0,91311.0,0.00370183]
[1767494149068,0.01111831,91326.0,91312.0,0.00970183]
[1767494149962,0.01111831,91326.0,91311.0,0.0742814]
[1767494150468,0.08639464,91326.0,91308.0,0.00986614]
[1767494150764,0.00016431,91326.0,91310.0,0.010956]
[1767494151072,0.00016431,91326.0,91311.0,0.08398323]
[1767494151363,0.00016431,91326.0,91312.0,0.00970183]
[1767494155667,0.00016431,91326.0,91313.0,0.00970183]
[1767494159469,0.00016431,91326.0,91313.0,0.08398323]
[1767494159681,0.00016431,91326.0,91314.0,0.00970183]
[1767494160875,0.010955,91324.0,91310.0,0.00916082]
[1767494161374,0.00016431,91326.0,91310.0,0.00916082]
[1767494161570,0.010954,91325.0,91310.0,0.00916082]
[1767494161776,0.00016431,91326.0,91311.0,0.00916082]
[1767494161965,0.010954,91325.0,91311.0,0.00916082]
[1767494162367,0.00945009,91321.0,91308.0,0.00016431]
[1767494162565,0.010955,91319.0,91304.0,0.07831926]
[1767494162766,0.010955,91317.0,91304.0,0.07831926]
[1767494163072,0.09312,91318.0,91299.0,0.16340812]
[1767494163280,0.00945009,91316.0,91299.0,0.09312]
[1767494163463,0.010956,91310.0,91294.0,0.07028812]
[1767494163869,0.010956,91313.0,91294.0,0.07028812]
[1767494164066,0.02040509,91316.0,91294.0,0.07028812]
[1767494164777,0.02040509,91316.0,91296.0,0.07028812]
[1767494165073,0.02040509,91316.0,91297.0,0.00916082]
[1767494165379,0.02040509,91316.0,91298.0,0.00916082]
[1767494166177,0.010956,91314.0,91298.0,0.00916082]
[1767494167190,0.010956,91314.0,91297.0,0.07028812]
[1767494167481,0.010956,91312.0,91297.0,0.07028812]
[1767494168276,0.00945009,91316.0,91297.0,0.07028812]
[1767494168780,0.010955,91317.0,91300.0,0.00916082]
[1767494169181,0.010955,91317.0,91302.0,0.00916082]
[1767494171179,0.09312,91318.0,91302.0,0.00916082]
[1767494171379,0.010956,91315.0,91301.0,0.07028812]
[1767494172878,0.104075,91318.0,91301.0,0.07944894]
[1767494173081,0.104075,91318.0,91302.0,0.00916082]
[1767494174881,0.00945009,91316.0,91296.0,0.00916082]
[1767494175074,0.010956,91308.0,91295.0,0.07028812]
[1767494175273,0.010956,91308.0,91293.0,0.00932513]
[1767494175474,0.010956,91308.0,91294.0,0.00916082]
[1767494175883,0.010956,91311.0,91294.0,0.00916082]
[1767494176577,0.010956,91308.0,91293.0,0.07045243]
[1767494176781,0.010956,91308.0,91294.0,0.00916082]
[1767494177486,0.010956,91308.0,91291.0,0.09312]
[1767494177487,0.00945009,91308.0,91291.0,0.09312]
[1767494178483,0.00945009,91308.0,91289.0,0.00219086]
[1767494178484,0.010957,91302.0,91290.0,0.00016431]